Cogmind - Beta 13 @@@ ROGUE MODE // 2024.04.01 @ 01:07:54 Player: BigMaxPorter Result: Destroyed by G-50 Soldier with Heavy Laser Performance ------------- Evolutions (2) 1000 Regions Visited (5) 1000 Robots Destroyed (11) 55 Value Destroyed (338) 338 Prototype IDs (6) 120 Alien Tech Used (0) 0 Bonus (335) 335 TOTAL SCORE: 2848 Bonus ------- Follower Combat Kills 35 Aligned with FarCom 300 Cogmind --------- Core Integrity 0/550 Matter 143/300 Energy 16/100 System Corruption 0% Temperature Danger (434) Movement Core (50) Location -8/Materials Parts ------- > --- POWER (1) -------- (None) > --- PROPULSION (4) --- (None) > --- UTILITY (3) ------ Advanced Targeting Computer > --- WEAPON (3) ------- (None) > --- INVENTORY (5) ---- Light Ion Engine Latent Energy Streamer Peak State ------------ > --- POWER ------------ Light Ion Engine > --- PROPULSION ------- Flight Unit Flight Unit Improved VTOL Module > --- UTILITY ---------- Small Matter Pod Structural Scanner Sensor Array > --- WEAPON ----------- Small Laser Advanced Beam Rifle Latent Energy Streamer > --- INVENTORY -------- Ion Engine Airjet Small Laser [Rating: 25] Favorites ----------- Power Light Ion Engine Engine Light Ion Engine Propulsion Flight Unit Leg Aluminum Leg Hover Unit Airjet Flight Unit Flight Unit Utility Structural Scanner Device Structural Scanner Storage Small Matter Pod Processor Targeting Computer Weapon Small Laser Energy Gun Small Laser Energy Cannon Latent Energy Streamer Ballistic Gun Light Assault Rifle Ballistic Cannon Assault Cannon Build | -11 -10 -10 -10 -9 -8 ------- Run | Yrd Mat Min Exi Min Mat Slots Evolved 4 | . . . . . 4 Power . | . . . . . . Propulsion 2 | . . . . . 2 Utility 1 | . . . . . 1 Weapon 1 | . . . . . 1 Parts Attached 41 | 9 7 . 6 1 18 Power 9 | 5 1 . 1 . 2 Engine 9 | 5 1 . 1 . 2 Core . | . . . . . . Reactor . | . . . . . . Propulsion 7 | 2 2 . . . 3 Treads . | . . . . . . Leg 3 | 2 . . . . 1 Wheel . | . . . . . . Hover 1 | . . . . . 1 Flight 3 | . 2 . . . 1 Utility 8 | . 2 . 1 1 4 Device 2 | . 1 . . 1 . Storage 3 | . 1 . 1 . 1 Processor 3 | . . . . . 3 Hackware . | . . . . . . Protection . | . . . . . . Artifact . | . . . . . . Weapon 17 | 2 2 . 4 . 9 Energy Gun 8 | 2 . . 2 . 4 Energy Cannon 3 | . . . 1 . 2 Ballistic Gun 3 | . 2 . 1 . . Ballistic Cannon 3 | . . . . . 3 Launcher . | . . . . . . Special Weapon . | . . . . . . Impact Weapon . | . . . . . . Slashing Weapon . | . . . . . . Piercing Weapon . | . . . . . . Special Melee Weapon . | . . . . . . Unidentified Prototypes 4 | . . . 2 . 2 Parts Lost 12 | . . . . . 12 Power 2 | . . . . . 2 Propulsion 4 | . . . . . 4 Utility 2 | . . . . . 2 Weapon 4 | . . . . . 4 Highest Loss Streak 10 | . . . . . 10 To Critical Strikes . | . . . . . . Average Slot Usage (%) 84 | . 90 85 89 100 73 Engine 11 | . 14 14 14 14 7 Leg 2 | . 18 . . . . Flight 22 | . 10 28 28 28 17 Device 15 | . 12 14 14 26 17 Storage 3 | . 7 . 4 1 1 Processor 1 | . . . . . 5 Energy Gun 14 | . 19 . 9 28 18 Ballistic Gun 9 | . 9 28 17 . . Ballistic Cannon 1 | . . . . . 5 Naked Turns . | . . . . . . Heaviest Build 19 | 7 8 8 14 7 19 Greatest Support 20 | 20 20 8 8 8 13 Greatest Overweight (x) 3 | . . . 1 . 3 Average Overweight (x) . | . . . . . . Largest Inventory Capacity 5 | 5 5 5 5 5 5 Average Capacity 5 | 5 5 5 5 5 5 Most Carried 5 | 1 4 4 5 3 5 Average Carried 2 | . 1 4 3 2 3 Final Capacity 5 | 5 5 5 5 5 5 Final Carried 4 | 1 4 4 2 3 2 Class Distribution -------------------- 33% | Scavenger-Mutant 30% | Mutant 21% | Scout 14% | Skirmisher Dominant Class ---------------- Mutant | -10/Materials Scavenger-Mutant | -10/Mines Scavenger-Mutant | -10/Exiles Scout | -9/Mines Skirmisher | -8/Materials Resources | -11 -10 -10 -10 -9 -8 ----------- Run | Yrd Mat Min Exi Min Mat Matter Collected 492 | 243 34 . . 22 193 Remotely . | . . . . . . Salvage Created 380 | . 48 . . . 332 Parts 26 | . 7 . . . 19 Haulers Intercepted . | . . . . . . Recyclers Shooed . | . . . . . . Parts Field Recycled . | . . . . . . Retrieved Matter . | . . . . . . Parts Self-Destructed . | . . . . . . Prevented . | . . . . . . Kills | -11 -10 -10 -10 -9 -8 ------- Run | Yrd Mat Min Exi Min Mat Combat Hostiles Destroyed 11 | . 3 . . . 8 Guns 9 | . 3 . . . 6 Cannons 2 | . . . . . 2 Classes Destroyed 4 | . 1 . . . 3 Swarmer 5 | . 3 . . . 2 Grunt 4 | . . . . . 4 Sentry 1 | . . . . . 1 Hunter 1 | . . . . . 1 Best Kill Streak 3 | . 3 . . . 3 Combat Bots Only 3 | . 3 . . . 3 Max Kills in Single Turn 1 | . 1 . . . 1 Gunslinging . | . . . . . . Exploded . | . . . . . . Melee . | . . . . . . Uniques/NPCs Destroyed . | . . . . . . Combat | -11 -10 -10 -10 -9 -8 -------- Run | Yrd Mat Min Exi Min Mat Hostile Shots Fired 154 | . 40 . . . 114 Missed 38 | . 13 . . . 25 Damage Taken 1639 | . 217 7 . . 1415 Core 622 | . 57 . . . 565 Absorbed by Shields . | . . . . . . Core Remaining (%) 88 | 100 . . . 77 . Volleys Fired 35 | . 7 1 1 . 26 Largest 3 | . 2 2 2 . 3 Hottest 149 | . 80 40 40 . 149 Shots Fired 89 | . 14 2 2 . 71 Gun 70 | . 14 2 2 . 52 Cannon 19 | . . . . . 19 Launcher . | . . . . . . Special . | . . . . . . Kinetic 23 | . . 2 2 . 19 Thermal 66 | . 14 . . . 52 Explosive . | . . . . . . Electromagnetic . | . . . . . . Robot Hit Streak 10 | . 4 2 . . 10 Robot Miss Streak 3 | . 3 1 . . 3 Penetration Max . | . . . . . . Secondary Targets 1 | . 1 . . . . Max Gunslinging Chain 1 | . 1 . . . . Shots Hit Robots 46 | . 6 1 . . 39 Core Hits 22 | . 4 . . . 18 Critical Kills . | . . . . . . Critical Parts Destroyed . | . . . . . . Critical Strikes . | . . . . . . Melee Attacks . | . . . . . . Impact . | . . . . . . Slashing . | . . . . . . Piercing . | . . . . . . Sneak Attacks . | . . . . . . Combat Hostiles . | . . . . . . Follow-up Attacks . | . . . . . . Damage Inflicted 818 | . 66 8 . . 744 Guns 581 | . 66 8 . . 507 Cannons 237 | . . . . . 237 Explosions . | . . . . . . Melee . | . . . . . . Ramming . | . . . . . . Kinetic 245 | . . 8 . . 237 Thermal 573 | . 66 . . . 507 Explosive . | . . . . . . Electromagnetic . | . . . . . . Impact . | . . . . . . Slashing . | . . . . . . Piercing . | . . . . . . Highest Corruption . | . . . . . . Average Corruption . | . . . . . . Corruption Purged . | . . . . . . Corruption Blocked . | . . . . . . Overload Shots . | . . . . . . Overflow Damage . | . . . . . . Projectiles . | . . . . . . Explosions . | . . . . . . Melee . | . . . . . . Knockbacks 4 | . . . . . 4 Impact . | . . . . . . Kinetic 4 | . . . . . 4 Secondary . | . . . . . . Self-Inflicted Damage . | . . . . . . Shots . | . . . . . . Rammed . | . . . . . . Targets Rammed . | . . . . . . Kicked . | . . . . . . Crushed . | . . . . . . Highest Temperature 557 | . 72 8 6 . 557 Average Temperature 177 | . 32 7 5 . 204 Received Heat Transfer 765 | . . . . . 765 Effects 10 | . . . . . 10 Energy Bleed 1 | . . . . . 1 Interference 2 | . . . . . 2 Damage (minor) 3 | . . . . . 3 Damage (major) 4 | . . . . . 4 Siege Activations . | . . . . . . Robots Corrupted . | . . . . . . Combat Hostiles . | . . . . . . Parts Fried . | . . . . . . Impact Corruptions . | . . . . . . Robots Melted . | . . . . . . Combat Hostiles . | . . . . . . Parts Melted 3 | . . . . . 3 Heat Transferred 1154 | . 150 . . . 1004 Parts Sabotaged . | . . . . . . Parts Stolen . | . . . . . . Parts Stripped . | . . . . . . Power Chain Reactions . | . . . . . . Alert | -11 -10 -10 -10 -9 -8 ------- Run | Yrd Mat Min Exi Min Mat Peak Influence 344 | . 115 44 . . 344 Initial 44 | . . 44 . . . Average 117 | . 68 44 . . 209 Maximum Alert Level 1 | . . . . . 1 Low Security (%) 72 | 100 100 100 . 100 40 Level 1 27 | . . . . . 59 Level 2 . | . . . . . . Level 3 . | . . . . . . Level 4 . | . . . . . . Level 5 . | . . . . . . High Security . | . . . . . . Max Security . | . . . . . . Squads Dispatched 4 | . . . . . 4 Investigation 1 | . . . . . 1 Extermination . | . . . . . . Reinforcement 1 | . . . . . 1 Assault . | . . . . . . Garrison 2 | . . . . . 2 Intercept . | . . . . . . Searches Triggered . | . . . . . . Construction Impeded . | . . . . . . Haulers Reinforced . | . . . . . . Active Scanning Responses . | . . . . . . Cargo Convoy Interrupts . | . . . . . . Stealth | -11 -10 -10 -10 -9 -8 --------- Run | Yrd Mat Min Exi Min Mat Distress Signals 3 | . . . . . 3 Communications Jammed . | . . . . . . Distress Signals . | . . . . . . Times Spotted 26 | . 6 1 . . 19 Peak Tracking Total 6 | . 5 . . . 6 Tactical Retreats 3 | . 1 . . . 2 Traps | -11 -10 -10 -10 -9 -8 ------- Run | Yrd Mat Min Exi Min Mat Traps Triggered 1 | . . . . . 1 Indirectly . | . . . . . . Trap Hack Attempts . | . . . . . . Triggered . | . . . . . . Disarmed . | . . . . . . Reprogrammed 4 | . . . . . 4 Reused 3 | . . . . . 3 Traps Extracted . | . . . . . . Installed . | . . . . . . Triggered 3 | . . . . . 3 Machines | -11 -10 -10 -10 -9 -8 ---------- Run | Yrd Mat Min Exi Min Mat Machines Disabled . | . . . . . . Max in Single Turn . | . . . . . . Machines Repaired . | . . . . . . Machines Dismantled . | . . . . . . Machines Sabotaged . | . . . . . . Overloaded Fab Kills . | . . . . . . Hacking | -11 -10 -10 -10 -9 -8 --------- Run | Yrd Mat Min Exi Min Mat Machines Accessed 8 | . . . 4 . 4 Terminals 3 | . . . . . 3 Fabricators . | . . . . . . Repair Stations . | . . . . . . Recycling Units . | . . . . . . Scanalyzers 1 | . . . . . 1 Garrison Access . | . . . . . . Total Hacks 65 | . . . 49 . 16 Successful 58 | . . . 49 . 9 Failed 7 | . . . . . 7 Catastrophic . | . . . . . . Database Lockouts . | . . . . . . Manual 15 | . . . 14 . 1 Terminals 15 | . . . . . 15 Fabricators . | . . . . . . Repair Stations . | . . . . . . Recycling Units . | . . . . . . Scanalyzers 1 | . . . . . 1 Garrison Access . | . . . . . . Terminal Hacks 58 | . . . 49 . 9 Record 51 | . . . 49 . 2 Prototype ID Bank 1 | . . . . . 1 Alert Level 1 | . . . . . 1 Locate Traps 1 | . . . . . 1 Reprogram Traps 1 | . . . . . 1 Maintenance Status 1 | . . . . . 1 Patrol Status 1 | . . . . . 1 Transport Status 1 | . . . . . 1 Fabricator Hacks . | . . . . . . Repair Station Hacks . | . . . . . . Recycling Unit Hacks . | . . . . . . Scanalyzer . | . . . . . . Garrison Access Hacks . | . . . . . . Unauthorized Hacks . | . . . . . . Terminals . | . . . . . . Fabricators . | . . . . . . Repair Stations . | . . . . . . Recycling Units . | . . . . . . Scanalyzers . | . . . . . . Garrison Access . | . . . . . . Data Cores Recovered . | . . . . . . Used . | . . . . . . Hacking Detections 4 | . . . . . 4 Full Trace Events 2 | . . . . . 2 Feedback Events . | . . . . . . Feedback Blocked . | . . . . . . Robot Schematics Acquired . | . . . . . . Robots Built . | . . . . . . Authchips . | . . . . . . Time . | . . . . . . Total Robot Build Rating . | . . . . . . Part Schematics Acquired . | . . . . . . Parts Built . | . . . . . . Authchips . | . . . . . . Time . | . . . . . . Total Part Build Rating . | . . . . . . Parts Repaired . | . . . . . . Time . | . . . . . . Parts Recycled . | . . . . . . Recycled Matter . | . . . . . . Retrieved Matter . | . . . . . . Retrieved Components . | . . . . . . Parts Scanalyzed . | . . . . . . Part Schematics Acquired . | . . . . . . Parts Damaged . | . . . . . . Bothacking | -11 -10 -10 -10 -9 -8 ------------ Run | Yrd Mat Min Exi Min Mat Used RIF Installer . | . . . . . . Robots Hacked . | . . . . . . Non-combat . | . . . . . . Combat . | . . . . . . Robot Hacks Applied . | . . . . . . Relay Couplers Released . | . . . . . . Fabnet Peak Effective % . | . . . . . . Robots Rewired . | . . . . . . Allies Hacked . | . . . . . . Hacks Repelled . | . . . . . . Allies | -11 -10 -10 -10 -9 -8 -------- Run | Yrd Mat Min Exi Min Mat Total Allies 2 | . . . . 2 . Largest Group 2 | . . . . 2 2 Highest-Rated Group 45 | . . . . 45 45 Highest-Rated Ally 31 | . . . . 31 31 Total Orders . | . . . . . . Ally Attacks 14 | . . . . . 14 Total Damage 191 | . . . . . 191 Kills 2 | . . . . . 2 Allies Corrupted . | . . . . . . Allies Melted . | . . . . . . Intel | -11 -10 -10 -10 -9 -8 ------- Run | Yrd Mat Min Exi Min Mat Robot Analysis Total . | . . . . . . Derelict Logs Recovered 1 | . . . . 1 . Drone Launches . | . . . . . . Drone Recoveries . | . . . . . . Exploration | -11 -10 -10 -10 -9 -8 ------------- Run | Yrd Mat Min Exi Min Mat Turns Passed 1042 | 62 139 76 363 84 318 Spaces Moved 1582 | 43 93 62 878 147 359 Core 18 | 5 . . . . 13 Treads . | . . . . . . Legs 87 | 38 49 . . . . Wheels . | . . . . . . Hover . | . . . . . . Flight 1477 | . 44 62 878 147 346 Fastest Speed 32 | 50 37 37 37 37 32 Average Speed 45 | 111 80 37 37 37 51 Slowest Speed 245 | 120 120 37 117 37 245 Overloaded Moves . | . . . . . . Propulsion Burnouts . | . . . . . . Robots Hopped 1 | . 1 . . . . Cave-ins Triggered . | . . . . . . Exploration Rate (%) 32 | 5 17 34 93 18 26 Regions Visited 5 Branch Regions 3 Pre-discovered Areas 1 | . . . 1 . . Known Exits Taken . | . . . . . . Unknown Exits Taken 5 | 1 1 1 1 1 . Scrap Searched 1 | . . . . 1 . Spaces Dug . | . . . . . . Terrain Destroyed 5 | . . . . . 5 Melee . | . . . . . . Projectile 5 | . . . . . 5 AOE . | . . . . . . Terrain Rammed . | . . . . . . Walls Destroyed . | . . . . . . Machines Disabled . | . . . . . . Actions | -11 -10 -10 -10 -9 -8 --------- Run | Yrd Mat Min Exi Min Mat Total 1825 | 53 140 112 910 175 435 Wait 136 | . 28 50 14 27 17 Move 1575 | 42 90 61 877 146 359 Hop 1 | . 1 . . . . Pick Up 16 | 1 4 . 3 1 7 Fast Attach 14 | 5 2 . 3 . 4 Attach 12 | 1 2 . 2 . 7 Detach 6 | 1 1 . 2 . 2 Swap 15 | 3 3 . 1 1 7 Drop 15 | . 2 . 7 . 6 Fire 35 | . 7 1 1 . 26 Melee . | . . . . . . Ram . | . . . . . . Kick . | . . . . . . Crush . | . . . . . . Escape Stasis . | . . . . . . Rewire . | . . . . . . Trap . | . . . . . . Miscellaneous . | . . . . . . Route ------- -11/Scrapyard -10/Materials -10/Mines (discovered 2 exits: [*Mat] / *Exi) -10/Exiles (discovered 2 exits: [*Min x2]) -9/Mines -8/Materials History --------- Turn | Location | Event 2 | -11/Scrapyard | Discovered new exit (range 16) 63 | -11/Scrapyard | Entered Materials 166 | -10/Materials | Met 8R-AWN 195 | -10/Materials | Discovered new exit (range 8) 202 | -10/Materials | Entered Mines 203 | -10/Mines | Followed 8R-AWN into the Mines 233 | -10/Mines | Discovered new exit (range 14) 274 | -10/Mines | Discovered new exit (range 6) 278 | -10/Mines | Entered Exiles 286 | -10/Exiles | Discovered new exit (range 14) 292 | -10/Exiles | Welcomed by 8R-AWN 302 | -10/Exiles | Met EX-HEX 332 | -10/Exiles | Met EX-DEC 364 | -10/Exiles | Discovered new exit (range 11) 378 | -10/Exiles | Learned location of Zion (-7) 391 | -10/Exiles | Met EX-BIN 397 | -10/Exiles | Aligned with FarCom system 397 | -10/Exiles | Given EX-Vault access code 449 | -10/Exiles | Build established: Scavenger-Mutant 486 | -10/Exiles | Opened EX-Vault 488 | -10/Exiles | Found Prototype Energy Cannon 495 | -10/Exiles | Found Prototype Ballistic Gun 497 | -10/Exiles | Identified AWS/Gauss 513 | -10/Exiles | Identified Latent Energy Streamer 540 | -10/Exiles | Warned to stay clear of 0b10 Research branches 586 | -10/Exiles | Visited The Gauntlet 641 | -10/Exiles | Left Exiles lab with Latent Energy Streamer 641 | -10/Exiles | Entered Mines 645 | -9/Mines | Learned Materials terminal intel 653 | -9/Mines | Discovered new exit (range 8) 725 | -9/Mines | Entered Materials 725 | -8/Materials | Accompanied by 2 allies 725 | -8/Materials | Evolved 4 slots: Propulsion x2, Utility x1, Weapon x1 726 | -8/Materials | Loaded intel: 12 terminal locations 730 | -8/Materials | Led the pair of lost Derelicts to an unsafe place 886 | -8/Materials | Garrison activated, responded to threat 1030 | -8/Materials | Core integrity fell below 50% 1040 | -8/Materials | Core integrity fell below 20% 1043 | -8/Materials | Destroyed by G-50 Soldier with Heavy Laser Last Messages --------------- Overheating: Assault Cannon damaged (-26). Overheating: Energy bleed (-2). Structural Scanner destroyed. U-05 Engineer builds a Door. Assault Cannon destroyed. U-05 Engineer builds a Wall. Acquired 5 matter. K-01 Serf collects debris. Overheating: Imp. VTOL Module damaged (-25). K-01 Serf destroyed. Sensor Array destroyed. Overheating: System interference. Adv. Targeting Computer temporarily disabled. Critical hit (Burn: +37). M-13 Machinist repairs G-50 Soldier. G-47 Trooper suffers critical hit (Burn). Acquired Beamcaster. Ion Engine destroyed. Imp. VTOL Module destroyed. Beamcaster destroyed. Map ----- +----------------------------------------------------+ | ????????????????????????????????????????????????## | | ????????????????????????????????????????????????## | | ????????????????????????????????????????????????## | | ????????????????????????????????????????????????## | | ????????????????????????????????????????????????## | | ?????????????????????????????????????????######### | | ?????????????????????????????????????????######### | | ?????????????????????????????????????????## """ # | | ?????????????????????????????????????????## """ # | | ?????????????????????????????????????????## """ + | | ?????????????????????????????????????????## # | | ???????????????????????#####?????????????## # | | ?????????????????????? #################### # | | ??????????????????????### ######################## | | ?????????????######???## ! ##= ######## | | ?????????????# * "?? #[ """ ## """"" ##????## | | ?????????????# ""? # !""" ## """"" ##????## | | ?????????????# ""? # """ ## """"" ##????## | | ?????????????? ? # ## """"" ######## | | ???????????????""" ? # ][[ ## """"" ######## | | ????????????????? # = ## """"" #**!!!!# | | ?????????????????? # ## """"" #**!!!!# | | ?????????????# # ## # # | | ?????????????#####+######+###########+##### # | | ???????????#### % [%g= !%=* g | | ???????????## #*%[*=% muu@ g | | ???????????#### ! g g k w | | ?????????????## ######################## ####### | | ?????????????## ############### """" # ####### | | ???????????T?????????????????## ""S"" # ####### | | ?????????????????????????????## "" "" # ####### | | ????????????????????????Y????## !#* | | ?????????????????????????????## = "= | | ?????????????????????????????## """""%#= | | ?????????????????????????????## """"" #%= ####### | | ?????????????????????????????## """"" #! ## | | ?????????????????????????????## # ## | | ?????????????????????????????#####+##### ##""" | | ?????????????????????????######## ##"T | | ???????????????????????? ######## ##""" | | ??????????????????? / ## | | ???????????????????????? #########+##### ####### | | ?????????????????????????######## # # | | ???????????????????????????????## # # ???? | | ???????????????????????????????## """ + + ???? | | ???????????????????????????????## """ # # ???? | | ???????????????????????????????## """ # # ???? | | ?????????????????????????######## # # ???? | | ?????????????????????????#########+##### ##????# | | ?????????????????????###### # ##????# | +----------------------------------------------------+ Best States ------------- Heat Dissipation 31 Energy Generation 14 Energy Capacity 250 Matter Stores 253 Matter Capacity 350 Sight Range 16 Robot Scan Range 14 Terrain Scan Density 10 Evasion (%) 63 Targeting Accuracy 8 Item Schematics ----------------- None Robot Schematics ------------------ None Fabricated ------------ Nothing Alien Tech Used ----------------- None Achievements -------------- Librarian Tourist Challenges ------------ None Game ------ Seed CentriumRefineryHumpback Manual? 0 Play Time 00:39:48 Cumulative 2.1 hours Start 2024.04.01 @ 00:24:55 End 2024.04.01 @ 01:07:54 Sessions 1 Manual Loads 0 Difficulty Rogue Special Mode None Game No. 6 Rogue 6 Adventurer 0 Explorer 0 Win Type - Total 0 Types 0/0/0/0/0/0/0/0/0 Lore% 9 Gallery% 8 Achievement% 8 Wizard Run 0 Options --------- Layout 1 ASCII 0 Keyboard 0 Movement Mouse Keybinds 0 Fullscreen 1 Font 24/Smallcaps Map View 50x35 Zoom Use 0% Tactical HUD 0 Map Filters NONE Filters NONE Steam 1 RUN: a3bff3dc-0459-4237-9aa5-8e27143843f1